bitfinex/quotes_ETHUSD_20250110
["timestamp","ask_amount","ask_price","bid_price","bid_amount"]
[1736524010748,0.15409709,3272.7,3270.2,0.03057405]
[1736524010749,0.8164,3272.1,3271.9,3.05632]
[1736524010950,0.25,3273.7,3270.3,0.756]
[1736524010951,0.8164,3272.5,3271.5,3.97850167]
[1736524011274,0.8164,3272.5,3271.9,3.05629]
[1736524011890,0.8164,3272.5,3271.7,3.05649]
[1736524012068,0.8164,3272.5,3271.9,3.05629]
[1736524012275,0.8164,3272.5,3272.3,3.05592]
[1736524012476,0.8164,3272.5,3272.3,3.0559]
[1736524012791,0.8164,3272.5,3271.9,3.05631]
[1736524013144,0.8164,3272.5,3271.5,0.348]
[1736524013343,0.8164,3272.5,3271.5,3.40469]
[1736524013615,0.0075,3273.0,3271.0,3.97850167]
[1736524013893,0.55,3272.0,3270.5,3.97850167]
[1736524014187,0.360617,3271.9,3270.5,3.97850167]
[1736524014387,3.05613,3272.2,3270.7,0.61638339]
[1736524014543,0.0075,3272.3,3270.7,0.61638339]
[1736524014743,0.0075,3272.3,3270.4,0.348]
[1736524014744,3.05664,3271.6,3270.4,0.348]
[1736524014985,0.015,3272.0,3270.4,0.348]
[1736524015136,3.05676,3271.5,3270.3,3.05779]
[1736524015340,0.305676,3271.4,3270.2,0.61087122]
[1736524015541,3.05698,3271.2,3270.1,3.05798]
[1736524015776,0.0075,3272.0,3270.7,3.05743]
[1736524015985,3.05596,3272.3,3270.8,0.03057216]
[1736524016220,0.3191609,3271.1,3270.9,3.05724]
[1736524016503,0.25,3273.0,3270.9,3.05724]
[1736524016504,3.05617,3272.1,3270.9,3.05724]
[1736524016653,0.31916729,3271.7,3270.6,3.0]
[1736524016858,0.8061,3271.9,3270.6,6.05745]
[1736524017058,0.8061,3271.9,3270.6,3.05754]
[1736524017274,3.05678,3271.5,3270.0,4.73560167]
[1736524017488,0.7578,3271.7,3270.6,3.05747]
[1736524017681,0.7578,3271.7,3270.0,4.73560167]
[1736524017682,0.7578,3271.7,3270.7,0.03057204]
[1736524017999,0.7578,3271.7,3271.0,3.05708]
[1736524018367,0.7578,3271.7,3270.8,3.05734]
[1736524018604,0.7578,3271.7,3270.1,0.60866635]
[1736524018808,3.81438,3271.7,3270.6,3.05754]
[1736524018990,0.7578,3271.5,3270.3,3.05777]
[1736524019188,0.7578,3271.5,3270.3,3.0578]
[1736524019189,3.05684,3271.4,3270.3,3.0578]
[1736524019521,0.8156,3271.1,3269.6,0.348]
[1736524019676,3.05737,3270.8,3269.8,3.05828]
[1736524020064,0.7574,3270.7,3269.8,3.05828]
[1736524020280,1.138877,3270.7,3269.0,3.97850167]
[1736524020573,3.0579,3270.3,3269.3,3.05874]
[1736524020809,0.7574,3270.6,3269.0,3.97850167]
[1736524021105,0.7574,3270.3,3269.2,3.05883]
[1736524021874,0.7574,3270.3,3269.7,3.05829]
[1736524022062,0.7574,3270.3,3269.1,3.0]
[1736524022419,3.8153,3270.3,3269.2,3.05883]
[1736524022617,0.8244,3270.1,3268.7,0.60280681]
[1736524022818,0.55,3270.0,3268.7,0.60280681]
[1736524022960,0.8244,3269.9,3268.0,3.97850167]
[1736524023165,0.8289,3269.7,3268.0,3.68585695]
[1736524023383,0.8289,3269.7,3267.9,0.8155]
[1736524023596,3.88784,3269.2,3268.1,3.05984]
[1736524023815,3.88784,3269.2,3267.9,0.8155]
[1736524023816,3.05904,3269.0,3267.8,3.06008]
[1736524023970,1.217684,3269.2,3267.6,0.62680399]
[1736524024304,0.2575,3270.4,3267.6,0.62680399]
[1736524024305,0.7911,3270.2,3268.5,4.74180167]
[1736524024510,0.7911,3270.2,3269.1,3.05894]
[1736524024708,0.7911,3270.2,3269.2,3.05885]
[1736524025011,0.7911,3270.2,3269.3,0.03058436]
[1736524025164,0.7911,3270.2,3269.0,3.97850167]
[1736524025717,0.7911,3270.2,3269.2,3.0]
[1736524026011,0.7911,3270.2,3269.9,3.05815]
[1736524026162,0.7911,3270.2,3269.9,3.05819]
[1736524026602,0.7911,3270.2,3269.8,3.0582]
[1736524026912,0.7911,3270.2,3269.4,3.05859]
[1736524027208,0.7911,3270.2,3269.9,3.05815]
[1736524027368,0.7911,3270.2,3269.7,3.05829]
[1736524027574,0.7911,3270.2,3269.8,3.0582]
[1736524027759,0.8005,3270.8,3269.8,3.0582]
[1736524027956,0.8005,3270.8,3269.7,0.03058008]
[1736524028214,0.8005,3270.2,3269.5,0.61769436]
[1736524028412,0.8005,3270.2,3268.7,0.8098]
[1736524028566,0.8005,3270.2,3269.4,3.05865]
[1736524028912,0.8005,3270.2,3268.8,0.03058576]
[1736524028913,0.8005,3270.2,3269.8,3.05828]
[1736524029112,0.8005,3270.2,3269.3,3.05875]
[1736524029411,0.8005,3271.1,3270.2,3.05789]
[1736524029757,0.8005,3271.1,3269.8,3.08880723]
[1736524030113,0.8005,3271.1,3269.6,3.61842971]
[1736524030261,3.05742,3270.8,3269.6,3.05839]
[1736524030610,0.7874,3270.9,3269.7,0.03058229]
[1736524030779,0.7874,3270.9,3269.8,0.7715]
[1736524030960,0.7874,3270.9,3269.9,0.03057569]
[1736524031164,0.7874,3270.9,3270.6,3.05749]
[1736524031402,0.8147,3272.7,3270.7,0.03057383]
[1736524031613,3.8703,3272.7,3271.6,3.05659]
[1736524031794,3.8703,3272.7,3271.3,0.03056496]
[1736524031795,0.8147,3272.7,3271.3,0.03056496]
[1736524031960,0.8147,3273.1,3272.2,3.05603]
[1736524032167,0.8147,3273.1,3272.3,0.03055564]
[1736524032361,0.8147,3273.1,3271.6,3.97850167]
[1736524032362,3.86998,3273.1,3271.6,7.03504167]
[1736524032574,0.8147,3273.1,3271.7,3.03055989]
[1736524032781,0.7745,3273.5,3272.3,3.7972]
[1736524033082,0.7745,3273.5,3273.2,3.05502]
[1736524033283,0.8089,3273.9,3272.9,0.03054775]
[1736524033496,0.8089,3273.9,3273.4,3.05489]
[1736524034093,0.8089,3273.9,3273.1,3.0552]
[1736524034294,0.8089,3273.9,3272.6,0.60024479]
[1736524034494,0.8089,3273.9,3272.2,3.05598]
[1736524034917,3.05468,3273.7,3272.6,3.05564]
[1736524035118,0.305468,3273.6,3272.6,3.05564]
[1736524035322,0.305468,3273.6,3272.8,3.05543]
[1736524035520,0.31912265,3273.8,3273.2,3.0551]
[1736524035793,0.8089,3273.9,3272.9,0.03054829]
[1736524036253,0.8089,3273.9,3273.6,3.05464]
[1736524036538,0.8089,3273.9,3272.8,0.7645]
[1736524036895,0.8089,3273.9,3272.9,3.08593545]
[1736524037245,0.7572,3274.8,3273.7,3.97850167]
[1736524037409,0.1685993,3275.1,3273.8,4.14083591]
[1736524037740,0.1685993,3275.1,3274.4,3.0539]
[1736524037945,0.1685993,3275.1,3274.4,3.05391]
[1736524038112,0.1685993,3275.1,3274.9,3.05351]
[1736524038314,0.1685993,3275.1,3275.0,3.08396215]
[1736524038513,9.3e-06,3275.1,3275.0,6.43296215]
[1736524038711,0.8138,3278.0,3277.0,3.05155]
[1736524038934,0.8138,3278.0,3277.0,3.97850167]
[1736524039153,0.8138,3278.0,3276.5,0.03051475]
[1736524039327,0.8138,3278.0,3277.0,3.05155]
[1736524039507,0.8138,3278.0,3277.3,3.05127]
[1736524039713,0.8138,3278.0,3277.0,3.08200307]
[1736524039941,3.05139,3277.2,3277.0,0.03051307]
[1736524040167,0.8047,3278.1,3275.9,3.97850167]
[1736524040512,0.8047,3277.4,3275.7,3.40178]
[1736524040812,0.8047,3277.4,3275.7,0.349]
[1736524041012,3.0515,3277.1,3275.9,3.05255]
[1736524041211,0.8047,3277.4,3276.0,0.03052194]
[1736524041459,0.8047,3277.4,3276.0,3.03052194]
[1736524041637,0.8047,3277.4,3276.0,6.08299699]
[1736524041820,0.8047,3277.4,3276.0,3.0]
[1736524042028,0.8047,3277.4,3275.9,3.97850167]
[1736524042209,0.8047,3277.4,3275.4,3.83559]
[1736524042210,3.05167,3276.9,3275.4,3.97850167]
[1736524042414,0.305167,3276.8,3275.6,3.05287]
[1736524042859,0.7745,3276.7,3274.9,3.97850167]
[1736524043274,3.05217,3276.4,3275.0,3.05342]
[1736524043594,3.05207,3276.5,3275.2,3.05323]
[1736524044066,0.7745,3276.7,3275.4,3.97850167]
[1736524044215,0.7745,3276.7,3275.5,3.03052112]
[1736524044417,3.05065,3278.0,3276.1,3.0524]
[1736524044617,0.305065,3277.9,3276.6,3.97850167]
[1736524044915,0.7967,3278.3,3277.1,3.05146]
[1736524045121,0.7967,3278.3,3277.5,3.05108]
[1736524045678,0.7967,3278.3,3277.6,3.08149737]
[1736524045851,0.7967,3278.3,3277.6,0.03050737]
[1736524046033,0.7967,3278.3,3277.8,3.0508]
[1736524046370,0.1685993,3278.4,3277.9,0.03050411]
[1736524046519,0.1685993,3278.4,3278.3,3.05036]
[1736524046941,0.1685993,3278.4,3278.3,6.08085803]
[1736524047272,0.005,3279.2,3279.1,3.04961]
[1736524047418,0.005,3279.2,3278.6,0.03049137]
[1736524047622,0.005,3279.2,3278.2,3.0]
[1736524048173,0.005,3279.2,3279.1,3.04961]
[1736524048463,0.005,3279.2,3278.8,3.08030142]
[1736524048669,0.005,3279.2,3278.1,3.97850167]
[1736524048875,0.005,3279.2,3278.6,3.97850167]
[1736524049072,0.005,3279.2,3279.0,3.0497]
[1736524049217,0.005,3279.2,3278.6,3.97850167]
[1736524049573,0.005,3279.2,3278.6,7.02852167]
[1736524049719,0.005,3279.2,3278.4,3.05026]
[1736524050168,0.005,3279.2,3277.9,0.60553257]
[1736524050389,0.773,3279.1,3277.4,0.349]
[1736524050667,0.382757,3279.0,3278.0,3.05061]
[1736524050869,0.773,3279.1,3278.4,3.05024]
[1736524051070,0.773,3279.1,3278.1,3.97850167]
[1736524051263,0.005,3279.2,3278.8,3.04983]
[1736524051434,0.005,3279.2,3278.6,3.97850167]
[1736524051636,0.005,3279.2,3279.1,7.02811167]
[1736524051855,1e-05,3279.2,3279.1,10.81101167]
[1736524052369,1e-05,3279.2,3279.1,7.81101167]
[1736524052573,1e-05,3279.2,3279.1,7.02811167]
[1736524052778,1e-05,3279.2,3279.0,0.61476474]
[1736524052918,1e-05,3279.2,3278.1,3.97850167]
[1736524053335,1e-05,3279.2,3278.5,3.05015]
[1736524053541,1e-05,3279.2,3278.2,3.0]
[1736524053772,1e-05,3279.2,3278.2,0.03049946]
[1736524054025,1e-05,3279.2,3277.6,3.97850167]
[1736524054026,3.04962,3279.1,3277.8,3.05079]
[1736524054265,0.304963,3279.0,3277.8,3.05079]
[1736524054467,3.0499,3278.8,3277.6,3.97850167]
[1736524054774,3.82213,3278.7,3277.6,3.051]
[1736524054955,0.7721,3278.7,3277.7,3.08139382]
[1736524055272,0.7721,3278.7,3277.7,0.03050382]
[1736524055572,0.7721,3278.7,3278.4,3.05024]
[1736524055723,0.7721,3278.7,3278.2,3.05043]
[1736524056179,0.7721,3278.7,3277.9,3.08114073]
[1736524056326,0.7721,3278.7,3276.9,3.05165]
[1736524056526,3.05022,3278.5,3277.2,3.05136]
[1736524056873,0.7721,3278.7,3278.4,3.05023]
[1736524057170,1e-05,3279.2,3278.4,3.05023]
[1736524057171,1e-05,3279.2,3278.9,3.04978]
[1736524057371,1e-05,3279.2,3278.2,3.05045]
[1736524057372,1e-05,3279.2,3278.1,0.62497137]
[1736524057579,1e-05,3279.2,3277.3,3.05124]
[1736524057580,3.04989,3278.8,3277.4,3.05119]
[1736524057781,3.88138,3278.7,3277.1,3.05142]
[1736524057951,3.438248,3278.6,3277.2,3.05138]
[1736524058333,0.388138,3278.6,3276.9,3.05161]
[1736524058535,0.8313,3278.3,3276.6,1.1472]
[1736524058770,0.8313,3278.3,3276.7,0.03051058]
[1736524058955,0.8313,3278.3,3277.7,3.05091]
[1736524059151,0.8313,3278.3,3277.1,3.0]
[1736524059588,0.8313,3278.3,3277.4,3.05119]
[1736524059803,0.8313,3278.3,3277.6,3.05101]
[1736524059954,0.8313,3278.3,3277.7,3.05088]
[1736524060280,0.8313,3278.3,3278.2,3.05045]
[1736524060692,1e-05,3279.2,3278.7,3.0499]
[1736524060990,0.7955,3279.1,3277.9,0.352]
[1736524061646,0.7955,3279.1,3278.0,4.00900427]
[1736524061994,0.7955,3279.1,3278.5,3.05015]
[1736524062549,0.7955,3279.1,3278.1,0.03050229]
[1736524062787,0.7955,3279.1,3277.7,6.05084]
[1736524063053,1.179994,3279.1,3278.2,3.05037]
[1736524063372,0.7955,3279.1,3278.4,3.05025]
[1736524063894,0.7955,3279.1,3278.1,3.05054]
[1736524064060,1e-05,3279.2,3277.7,3.05091]
[1736524064061,0.7677,3278.9,3277.7,3.05083]
[1736524064269,3.81752,3278.9,3277.8,3.05082]
[1736524064484,3.486652,3278.8,3277.8,3.05082]
[1736524064660,0.436752,3278.8,3277.3,3.05129]
[1736524064846,0.7677,3278.9,3278.0,3.05062]
[1736524065262,0.7517,3278.7,3277.7,3.05083]
[1736524065665,3.8017,3278.7,3277.5,3.05108]
[1736524065861,3.8017,3278.7,3277.0,0.352]
[1736524066163,0.7979,3278.5,3277.5,3.05102]
[1736524066466,0.7979,3278.5,3277.6,3.05095]
[1736524067167,0.7979,3278.5,3277.0,0.352]
[1736524067369,0.7979,3278.5,3277.5,3.97850167]
[1736524067579,0.7979,3278.5,3278.4,3.05026]
[1736524067780,0.7979,3278.5,3278.1,3.05052]
[1736524067781,3.8476,3279.1,3277.9,3.05065]
[1736524068007,0.8218,3278.9,3277.7,3.05083]
[1736524068173,3.87172,3278.8,3277.7,3.05087]
[1736524068380,0.8218,3278.6,3277.4,3.05111]
[1736524068580,0.5575,3278.3,3277.1,3.05139]
[1736524068824,0.0075,3278.5,3276.6,0.60283697]
[1736524068825,0.7749,3277.9,3276.6,0.60283697]
[1736524068990,0.7749,3277.9,3276.2,1.1063]
[1736524069198,0.7749,3277.9,3277.0,3.05153]
[1736524069401,0.7749,3277.9,3276.2,1.1063]
[1736524069670,0.7749,3277.9,3276.9,3.05164]
[1736524069867,0.7749,3277.9,3277.0,3.05154]
[1736524070118,6.9333,3278.2,3276.5,3.05198]
[1736524070316,6.9333,3278.2,3275.8,1.1201]
[1736524070317,0.8324,3277.5,3275.8,1.1201]
[1736524070624,0.8324,3277.3,3276.6,3.05193]
[1736524070802,0.8324,3277.3,3276.1,3.0]
[1736524071280,3.05149,3277.1,3275.8,0.59566278]
[1736524071483,0.781,3276.8,3275.8,3.05268]
[1736524071687,0.781,3276.8,3275.9,3.05257]
[1736524071868,1.164258,3276.8,3275.5,0.60769699]
[1736524072075,0.781,3276.8,3275.6,0.03052316]
[1736524072392,0.781,3276.8,3275.8,3.05262]
[1736524072722,0.781,3276.8,3275.0,7.03193167]
[1736524072723,0.5575,3276.7,3275.1,3.05325]
[1736524072922,0.757,3276.4,3275.2,0.03052876]
[1736524073124,0.62443493,3277.4,3274.9,0.59828954]
[1736524073125,3.80932,3276.2,3274.9,0.59828954]
[1736524073439,0.380932,3276.1,3275.0,3.05341]
[1736524073718,3.80939,3276.2,3275.1,3.05331]
[1736524073928,3.0595,3276.6,3274.7,0.61337812]
[1736524073929,0.7661,3275.8,3274.7,0.61337812]
[1736524074072,0.7824,3275.7,3274.7,0.61337812]
[1736524074271,0.7824,3275.7,3274.8,3.08415491]
[1736524074518,0.7824,3275.7,3274.9,3.05352]
[1736524074724,0.7824,3275.7,3274.8,3.05353]
[1736524074920,0.7824,3275.7,3274.5,3.05381]
[1736524074921,0.7824,3275.7,3274.9,3.0535]
[1736524075122,0.7824,3275.7,3274.3,3.352]
[1736524075273,0.7824,3275.7,3274.3,0.352]
[1736524075469,0.7824,3275.7,3274.9,3.05349]
[1736524076279,0.7824,3275.7,3274.3,3.62475351]
[1736524076634,3.83524,3275.7,3274.3,3.62475351]
[1736524076787,1.3672,3275.5,3274.3,0.62475351]
[1736524076974,0.8172,3275.3,3274.2,2.59175592]
[1736524077175,0.8172,3275.3,3274.4,3.05393]
[1736524077371,0.8172,3275.3,3274.2,2.59175592]
[1736524077610,0.8172,3275.3,3274.3,3.05407]
[1736524077812,3.05297,3275.5,3274.2,2.59175592]
[1736524077813,3.05361,3274.9,3274.2,2.59175592]
[1736524077987,0.8026,3274.6,3273.5,3.05482]
[1736524078209,0.55,3274.3,3272.8,0.7573]
[1736524078376,0.8026,3274.4,3273.0,0.60365936]
[1736524078576,0.8026,3274.4,3273.4,3.0549]
[1736524078777,0.8026,3274.4,3273.6,3.05474]
[1736524079093,0.8026,3274.4,3273.3,3.05499]
[1736524079297,3.05307,3275.4,3274.1,3.05418]
[1736524079638,3.80525,3275.3,3274.2,3.05415]
[1736524079794,3.80525,3275.3,3273.7,4.5844233]
[1736524079795,0.7521,3275.3,3273.7,4.5844233]
[1736524079996,0.7521,3275.3,3273.8,3.05455]
[1736524080203,0.7521,3275.3,3273.9,3.05438]
[1736524080405,0.7521,3275.3,3274.1,3.05424]
[1736524080615,0.4110497,3275.2,3273.9,3.05446]
[1736524080815,0.7521,3275.3,3274.0,0.03054032]
[1736524080997,0.7521,3275.3,3273.7,4.5844233]
[1736524081211,0.0075,3275.7,3273.7,4.5844233]
[1736524081212,0.55,3274.9,3273.7,0.60592163]
[1736524081414,0.7693,3274.8,3273.9,3.05437]
[1736524081581,0.7693,3274.8,3273.8,3.05451]
[1736524081777,0.7693,3274.8,3273.9,0.0305419]
[1736524082101,0.7693,3274.8,3273.8,3.05451]
[1736524082295,0.7693,3274.8,3273.5,0.61417587]
[1736524082498,0.7693,3274.8,3274.2,3.05418]
[1736524082710,0.7693,3274.8,3274.3,0.03054169]
[1736524082911,0.7693,3274.8,3274.5,3.05384]
[1736524083113,0.7693,3274.8,3274.1,3.0542]
[1736524083282,3.82293,3274.8,3273.7,3.05463]
[1736524083481,1.153193,3274.7,3273.5,0.03054479]
[1736524083728,0.7709,3274.7,3274.6,3.0538]
[1736524083894,0.7709,3274.7,3273.8,3.0]
[1736524084096,0.7709,3275.9,3274.6,3.0538]
[1736524084486,3.82353,3275.9,3274.8,3.05356]
[1736524084701,0.7709,3275.9,3274.5,0.0305342]
[1736524084924,0.31930902,3275.8,3275.6,3.05285]
[1736524085228,0.7709,3275.9,3275.8,3.05268]
[1736524085381,0.7709,3275.9,3275.2,7.37967167]
[1736524085581,0.7709,3275.9,3275.2,0.348]
[1736524086017,0.7709,3275.9,3275.1,3.05332]
[1736524086214,0.7709,3275.9,3275.8,3.05268]
[1736524086432,0.7709,3275.9,3275.2,0.03053017]
[1736524086433,0.7902,3277.0,3275.2,3.97850167]
[1736524086613,0.7902,3277.0,3275.3,6.05306]
[1736524086799,3.81326,3276.7,3275.6,3.05284]
[1736524087002,0.7614,3276.7,3275.7,0.03052577]
[1736524087217,0.7614,3276.7,3275.3,3.0]
[1736524087218,0.7614,3276.7,3275.8,3.05262]
[1736524087531,0.7614,3276.7,3275.9,3.05258]
[1736524087730,0.7614,3276.7,3275.3,3.66314001]
[1736524087933,0.7614,3276.7,3275.4,0.03052556]
[1736524088086,0.7614,3276.7,3275.4,0.03052185]
[1736524088287,0.7614,3276.7,3276.2,3.05222]
[1736524088635,0.7614,3276.7,3276.6,3.05194]
[1736524088962,0.8211,3277.9,3276.3,6.05222]
[1736524089099,0.8211,3277.9,3276.2,3.97850167]
[1736524089430,3.45160743,3278.9,3276.3,3.0522]
[1736524089431,3.05131,3277.3,3276.3,3.0522]
[1736524089600,0.7626,3277.1,3275.8,3.0526]
[1736524089801,0.7626,3277.1,3276.2,3.97850167]
[1736524090117,0.7626,3277.1,3277.0,3.05157]
[1736524090316,0.7626,3277.5,3277.4,3.05119]
[1736524090548,0.7626,3277.5,3276.9,3.05158]
[1736524090701,0.7626,3277.5,3276.7,3.97850167]
[1736524091033,0.7626,3277.5,3275.9,3.05255]
[1736524091034,0.7626,3277.5,3276.2,0.62497515]
[1736524091187,0.773,3277.5,3275.7,0.806]
[1736524091387,0.773,3277.5,3276.1,3.97850167]
[1736524091590,0.773,3277.5,3276.6,3.05185]
[1736524091787,0.773,3277.5,3276.1,3.97850167]
[1736524091987,1.341,3277.7,3275.7,0.806]
[1736524092290,0.7835,3277.3,3275.8,0.03052217]
[1736524092495,0.8065,3276.9,3275.6,3.05284]
[1736524092748,0.8065,3276.9,3275.3,0.782]
[1736524092749,3.05206,3276.5,3275.4,0.62283566]
[1736524093041,0.8065,3276.2,3274.7,0.61213822]
[1736524093245,0.8065,3276.2,3275.1,3.05329]
[1736524093448,0.8065,3276.2,3274.5,4.77400167]
[1736524093449,0.7846,3275.8,3274.6,3.0]
[1736524093593,3.05278,3275.7,3274.7,3.05366]
[1736524093794,0.7846,3275.8,3274.8,3.0536]
[1736524094096,0.7846,3275.8,3274.5,3.97850167]
[1736524094097,1.168323,3275.8,3274.5,3.97850167]
[1736524094339,0.7999,3275.4,3274.0,4.32550167]
[1736524094494,0.25,3276.7,3274.7,3.05371]
[1736524094495,0.7999,3276.7,3274.7,3.05371]
[1736524094689,0.7999,3276.7,3275.7,3.05277]
[1736524094888,0.7999,3276.7,3275.5,3.97850167]
[1736524095157,0.7999,3276.7,3276.1,3.0524]
[1736524095358,0.7999,3276.7,3275.5,4.5761525]
[1736524095636,0.7999,3276.7,3276.1,3.05233]
[1736524095846,0.7999,3276.7,3275.8,0.03052171]
[1736524096047,0.7999,3276.7,3276.1,3.05233]
[1736524096191,0.7999,3276.7,3276.1,0.03052163]
[1736524096544,0.7999,3276.7,3275.6,3.0]
[1736524096695,0.7999,3276.7,3276.1,3.05239]
[1736524096893,0.7999,3276.7,3275.6,3.0]
[1736524097094,0.7999,3276.7,3275.8,3.05268]
[1736524097335,0.7999,3276.7,3275.5,7.6290325]
[1736524097509,0.8147,3276.5,3275.0,3.97850167]
[1736524097713,0.8147,3276.5,3275.5,3.97850167]
[1736524097941,0.8147,3276.5,3276.0,3.05244]
[1736524098251,0.8147,3276.5,3275.2,0.60584201]
[1736524098389,0.8147,3276.5,3275.3,0.03052448]
[1736524098592,3.86677,3276.5,3275.2,3.05316]
[1736524098978,0.8147,3276.5,3275.9,3.05259]
[1736524099178,0.8147,3276.5,3276.0,3.08293183]
[1736524099519,0.8147,3276.5,3276.0,0.03052183]
[1736524099721,0.7539,3276.9,3276.6,3.05191]
[1736524099949,0.7539,3276.9,3276.7,3.05181]
[1736524100236,0.7539,3276.9,3276.0,4.58981826]
[1736524100455,0.7539,3276.9,3276.5,3.05202]
[1736524100828,0.7875,3278.1,3276.6,0.03051738]
[1736524101024,3.05064,3278.0,3276.8,3.05166]
[1736524101278,0.383814,3277.9,3276.8,3.05166]
[1736524101622,0.7875,3277.8,3276.8,3.05166]
[1736524101939,0.8077,3277.5,3276.0,4.58981826]
[1736524102359,0.8077,3277.5,3276.7,3.05184]
[1736524102539,0.8077,3277.5,3276.7,3.05176]
[1736524102740,0.8077,3277.5,3276.5,3.97850167]
[1736524102940,0.8077,3277.5,3276.6,3.03051296]
[1736524103140,0.7864,3278.5,3277.1,3.0]
[1736524103464,0.7864,3278.5,3277.0,3.97850167]
[1736524103465,1.170042,3278.5,3277.0,3.97850167]
[1736524103626,0.7943,3278.3,3277.1,0.03051119]
[1736524103821,0.7943,3278.3,3276.9,0.347]
[1736524104319,0.7943,3278.3,3277.0,0.03050921]
[1736524104524,3.84468,3278.3,3277.1,3.05146]
[1736524104776,3.84468,3278.3,3276.9,0.347]
[1736524105076,3.84468,3278.3,3277.2,3.05138]
[1736524105221,4.229148,3278.3,3277.2,3.05138]
[1736524105429,4.229148,3278.3,3277.1,3.05147]
[1736524105644,1.178768,3278.3,3277.2,3.05133]
[1736524105842,0.7943,3278.3,3277.2,0.03051005]
[1736524106039,0.7943,3278.3,3277.2,3.08183005]
[1736524106439,0.7943,3278.3,3277.1,3.0]
[1736524106640,0.7943,3278.3,3277.7,3.05091]
[1736524107165,0.7943,3278.3,3277.5,3.05103]
[1736524107365,0.7943,3278.3,3277.2,3.05134]
[1736524107657,0.7943,3278.3,3276.7,3.05181]
[1736524107658,0.7943,3278.3,3277.3,0.03050897]
[1736524107981,0.7943,3278.3,3276.9,3.347]
[1736524107982,0.7943,3278.3,3277.5,3.0511]
[1736524108427,0.7943,3278.3,3276.6,3.05192]
[1736524108428,0.55,3278.0,3276.1,0.7551]
[1736524108628,0.55,3278.0,3276.3,3.05215]
[1736524108629,0.802,3277.8,3276.3,3.05215]
[1736524108855,0.802,3277.9,3275.9,3.97850167]
[1736524109074,0.802,3277.6,3276.1,3.05239]
[1736524109425,0.8259,3277.2,3276.0,0.03051708]
[1736524109876,0.8259,3277.1,3276.0,0.03052082]
[1736524110079,0.8259,3277.1,3276.1,3.05239]
[1736524110565,0.8259,3277.1,3276.3,3.0522]
[1736524110763,0.8259,3277.1,3276.0,3.05247]
[1736524110962,0.8259,3277.1,3275.4,3.97850167]
[1736524111143,3.05157,3277.0,3275.7,3.05273]
[1736524111344,0.8259,3277.1,3276.2,3.05231]
[1736524111672,0.8259,3277.1,3276.3,3.08271815]
[1736524111877,0.8259,3277.1,3275.9,3.97850167]
[1736524112242,0.8259,3277.1,3276.2,3.05231]
[1736524112442,0.8259,3277.1,3276.0,3.05249]
[1736524112780,0.8259,3277.1,3275.9,3.05254]
[1736524112929,0.8259,3277.1,3275.8,0.61838092]
[1736524113136,0.0075,3277.7,3275.8,0.61838092]
[1736524113137,0.8202,3276.8,3275.8,0.61838092]
[1736524113330,0.8202,3276.8,3275.8,0.64890464]
[1736524113576,0.8202,3276.8,3276.4,3.05211]
[1736524113893,0.8202,3276.8,3275.9,3.97850167]
[1736524114087,0.8202,3276.8,3276.2,3.05229]
[1736524114235,0.8202,3276.8,3275.9,3.97850167]
[1736524114434,0.8202,3276.8,3276.0,0.03051869]
[1736524114683,0.15215972,3278.3,3276.5,3.05194]
[1736524114684,3.05083,3277.8,3276.5,3.05194]
[1736524114840,1.117183,3277.7,3276.1,0.8101]
[1736524115036,0.55,3277.6,3276.4,3.05212]
[1736524115377,0.7731,3277.4,3276.4,3.05211]
[1736524115587,0.7731,3277.4,3276.1,0.03051813]
[1736524115588,0.7731,3277.4,3276.3,3.05213]
[1736524115793,0.7731,3277.4,3276.5,0.03051615]
[1736524115933,0.7731,3277.4,3276.7,3.05182]
[1736524116133,0.7731,3277.4,3277.1,3.05146]
[1736524116366,0.7731,3277.4,3276.4,3.97850167]
[1736524116367,0.8206,3278.4,3277.2,3.05129]
[1736524116575,0.8206,3278.4,3276.7,3.3805099]
[1736524116768,0.8206,3278.4,3277.5,0.8259]
[1736524116948,0.8206,3278.4,3278.0,3.05063]
[1736524117169,0.8206,3278.4,3278.1,0.0305023]
[1736524117349,0.8206,3278.4,3277.8,3.05081]
[1736524117549,0.8206,3278.4,3277.1,0.35]
[1736524117775,1.3376,3278.3,3277.1,0.62477836]
[1736524117968,0.55,3278.2,3276.8,3.05173]
[1736524118190,0.7876,3278.1,3276.9,0.03051315]
[1736524118395,3.83823,3278.1,3276.9,3.08216315]
[1736524118600,3.05067,3278.0,3276.9,0.03051315]
[1736524118893,1.226423,3278.1,3276.6,3.05194]
[1736524118894,0.8233,3277.6,3276.6,3.05194]
[1736524119038,0.8233,3277.6,3276.7,3.05182]
[1736524119240,0.8233,3277.6,3276.5,0.60875997]
[1736524119241,0.8233,3277.6,3276.5,3.66077997]
[1736524119469,0.8233,3277.6,3276.7,3.05184]
[1736524119686,0.8233,3277.6,3276.8,0.03051498]
[1736524119897,0.35,3279.3,3276.8,0.03051498]
[1736524120091,0.35,3279.3,3277.6,3.051]
[1736524120092,0.7772,3278.7,3277.6,3.051]
[1736524120260,0.382718,3278.6,3277.7,3.05089]
[1736524120462,0.382718,3278.6,3277.5,3.05109]
[1736524120647,3.432818,3278.6,3277.5,3.05109]
[1736524120844,3.05019,3278.5,3277.5,3.05109]
[1736524121100,3.05019,3278.5,3277.0,6.05149]
[1736524121101,3.0503,3278.4,3277.0,3.0]
[1736524121393,0.8073,3278.5,3277.1,0.03050809]
[1736524121704,0.8073,3278.5,3277.3,3.0512]
[1736524121873,0.8073,3278.5,3277.9,3.05064]
[1736524122276,0.8073,3278.5,3278.2,3.05043]